fUSD/lending_fUSD_20240331
["ID","MTS","AMOUNT","RATE_DAILY","PERIOD"]
[321119221,1711900366835,-500.0,0.00057808,120]
[321119222,1711900366845,-1065.68,0.00057808,120]
[321119223,1711900366856,-500.0,0.00057808,120]
[321119224,1711900366865,-696.26,0.00057808,120]
[321119225,1711900366875,-1509.76,0.00057808,120]
[321119226,1711900366884,-515.16,0.00057808,120]
[321119227,1711900366894,-500.0,0.00057808,120]
[321119228,1711900366903,-4982.8,0.00057808,120]
[321119229,1711900366912,-717.55,0.00057808,120]
[321119230,1711900366921,-2406.23,0.00057808,120]
[321119231,1711900366931,-500.0,0.00057808,120]
[321119232,1711900366940,-5346.73,0.00057808,120]
[321119233,1711900366949,-500.0,0.00057808,120]
[321119234,1711900366959,-3295.3,0.00057808,120]
[321119235,1711900366968,-688.17,0.00057808,120]
[321119236,1711900366978,-551.95,0.00057808,120]
[321119237,1711900366987,-1648.61,0.00057808,120]
[321119238,1711900366996,-500.0,0.00057808,120]
[321119239,1711900367005,-752.11,0.00057808,120]
[321119240,1711900367015,-716.5,0.00057808,120]
[321119241,1711900367024,-500.0,0.00057808,120]
[321119242,1711900367034,-694.07,0.00057808,120]
[321119243,1711900367044,-615.79,0.00057808,120]
[321119244,1711900367054,-883.93,0.00057808,120]
[321119245,1711900367063,-500.0,0.00057808,120]
[321119246,1711900367073,-500.0,0.00057808,120]
[321119247,1711900367082,-3973.68,0.00057808,120]
[321119248,1711900367092,-1150.28,0.00057808,120]
[321119249,1711900367101,-1646.9,0.00057808,120]
[321119250,1711900367111,-1225.53,0.00057808,120]
[321119251,1711900367120,-2159.97,0.00057808,120]
[321119252,1711900367130,-500.0,0.00057808,120]
[321119253,1711900367140,-994.44,0.00057808,120]
[321119254,1711900367149,-1115.67,0.00057808,120]
[321119255,1711900367159,-500.0,0.00057808,120]
[321119256,1711900367168,-4641.87,0.00057808,120]
[321119257,1711900367178,-8787.96,0.00057808,120]
[321119258,1711900367187,-500.0,0.00057808,120]
[321119259,1711900367196,-500.0,0.00057808,120]
[321119260,1711900367205,-500.0,0.00057808,120]
[321119261,1711900367215,-500.0,0.00057808,120]
[321119262,1711900367224,-1194.34,0.00057808,120]
[321119263,1711900367234,-640.05347152,0.00057808,120]
[321119264,1711900367243,-500.0,0.00057808,120]
[321119265,1711900367252,-752.64,0.00057808,120]
[321119266,1711900367261,-500.0,0.00057808,120]
[321119267,1711900367270,-3930.82,0.00057808,120]
[321119268,1711900367280,-1715.44,0.00057808,120]
[321119269,1711900367292,-500.0,0.00057808,120]
[321119270,1711900367302,-7337.25,0.00057808,120]
[321119271,1711900367311,-500.0,0.00057808,120]
[321119272,1711900367320,-1001.76,0.00057808,120]
[321119273,1711900367330,-1183.78,0.00057808,120]
[321119274,1711900367339,-787.48,0.00057808,120]
[321119275,1711900367348,-596.63,0.00057808,120]
[321119276,1711900367358,-939.48,0.00057808,120]
[321119277,1711900367368,-500.0,0.00057808,120]
[321119278,1711900367377,-602.91,0.00057808,120]
[321119279,1711900367387,-500.0,0.00057808,120]
[321119280,1711900367396,-2310.25,0.00057808,120]
[321119281,1711900367405,-1425.94,0.00057808,120]
[321119282,1711900367416,-520.6,0.00057808,120]
[321119283,1711900367425,-1026.37,0.00057808,120]
[321119284,1711900367434,-6224.16,0.00057808,120]
[321119285,1711900367443,-1747.53,0.00057808,120]
[321119286,1711900367454,-1299.9,0.00057808,120]
[321119287,1711900367462,-6493.36,0.00057808,120]
[321119288,1711900367471,-500.0,0.00057808,120]
[321119289,1711900367480,-703.93,0.00057808,120]
[321119290,1711900367489,-569.5,0.00057808,120]
[321119291,1711900367499,-500.0,0.00057808,120]
[321119292,1711900367509,-534.81,0.00057808,120]
[321119293,1711900367518,-500.0,0.00057808,120]
[321119294,1711900367528,-670.0,0.00057808,120]
[321119295,1711900367537,-1379.27,0.00057808,120]
[321119296,1711900367547,-833.15,0.00057808,120]
[321119297,1711900367556,-221.99557909,0.00057857,120]
[321119298,1711900367565,-157.60626263,0.0005791,120]
[321119299,1711900367575,-11773.17073824,0.0005799,30]
[321119300,1711900367585,-100000.0,0.00058,58]
[321119301,1711900367594,-151.0,0.00058,120]
[321119302,1711900367604,-150.0,0.00058,120]
[321119303,1711900367614,-365.0,0.00058,30]
[321119304,1711900367623,-169.624388,0.00058,120]
[321119305,1711900367632,-169.624388,0.00058,120]
[321119306,1711900367642,-307.543145,0.00058,120]
[321119307,1711900367652,-307.543145,0.00058,120]
[321119308,1711900367662,-151.0,0.00058,120]
[321119309,1711900367671,-151.0,0.00058,120]
[321119310,1711900367680,-999.52,0.0005807,2]
[321119311,1711900367689,-1239.43,0.00058082,120]
[321119312,1711900367699,-664.59,0.00058082,2]
[321119313,1711900367709,-500.0,0.00058082,120]
[321119314,1711900367719,-500.0,0.00058082,120]
[321119315,1711900367729,-161.98,0.00058082,120]
[321119316,1711900367738,-624.19,0.00058082,120]
[321119317,1711900367747,-500.0,0.00058082,120]
[321119318,1711900367757,-611.03,0.00058082,120]
[321119319,1711900367766,-527.64,0.00058082,120]
[321119320,1711900367775,-500.0,0.00058082,120]
[321119321,1711900367784,-500.0,0.00058082,120]
[321119322,1711900367794,-500.0,0.00058082,120]
[321119323,1711900367802,-500.0,0.00058082,120]
[321119324,1711900367811,-500.0,0.00058082,120]
[321119325,1711900367822,-643.04,0.00058082,120]
[321119326,1711900367831,-500.0,0.00058082,120]
[321119327,1711900367841,-469.84,0.00058082,120]
[321119328,1711900367850,-500.0,0.00058082,120]
[321119329,1711900367860,-500.0,0.00058082,120]
[321119330,1711900367869,-500.0,0.00058082,120]
[321119331,1711900367877,-500.0,0.00058082,120]
[321119332,1711900367887,-500.0,0.00058082,120]
[321119333,1711900367896,-500.0,0.00058082,120]
[321119334,1711900367905,-500.0,0.00058082,120]
[321119335,1711900367915,-500.0,0.00058082,120]
[321119336,1711900367926,-500.0,0.00058082,120]
[321119337,1711900367936,-500.0,0.00058082,120]
[321119338,1711900367945,-500.0,0.00058082,120]
[321119339,1711900367955,-500.0,0.00058082,120]
[321119340,1711900367965,-500.0,0.00058082,120]
[321119341,1711900367974,-500.0,0.00058082,120]
[321119342,1711900367984,-500.0,0.00058082,120]
[321119343,1711900367994,-500.0,0.00058082,120]
[321119344,1711900368003,-500.0,0.00058082,120]
[321119345,1711900368013,-500.0,0.00058082,120]
[321119346,1711900368023,-1476.31,0.00058082,120]
[321119347,1711900368033,-151.0,0.00058082,120]
[321119348,1711900368042,-500.0,0.00058082,120]
[321119349,1711900368052,-500.0,0.00058082,120]
[321119350,1711900368061,-500.0,0.00058082,120]
[321119351,1711900368070,-500.0,0.00058082,120]
[321119352,1711900368079,-500.0,0.00058082,120]
[321119353,1711900368088,-536.73,0.00058082,120]
[321119354,1711900368098,-794.23,0.00058082,120]
[321119355,1711900368107,-500.0,0.00058082,120]
[321119356,1711900368117,-500.0,0.00058082,120]
[321119357,1711900368126,-500.0,0.00058082,120]
[321119358,1711900368136,-500.0,0.00058082,120]
[321119359,1711900368148,-500.0,0.00058082,120]
[321119360,1711900368158,-726.96,0.00058082,120]
[321119361,1711900368167,-500.0,0.00058082,50]
[321119362,1711900368176,-500.0,0.00058082,120]
[321119363,1711900368186,-471.01,0.00058082,120]
[321119364,1711900368196,-500.0,0.00058082,120]
[321119365,1711900368206,-500.0,0.00058082,120]
[321119366,1711900368215,-753.06,0.00058082,120]
[321119367,1711900368225,-741.95,0.00058082,120]
[321119368,1711900368234,-500.0,0.00058082,120]
[321119369,1711900368244,-500.0,0.00058082,120]
[321119370,1711900368254,-500.0,0.00058082,120]
[321119371,1711900368264,-500.0,0.00058082,120]
[321119372,1711900368274,-500.0,0.00058082,120]
[321119373,1711900368284,-500.0,0.00058082,120]
[321119374,1711900368297,-500.0,0.00058082,120]
[321119375,1711900368307,-500.0,0.00058082,120]
[321119376,1711900368317,-500.0,0.00058082,120]
[321119377,1711900368327,-500.0,0.00058082,120]
[321119378,1711900368338,-796.42,0.00058082,120]
[321119379,1711900368347,-887.89,0.00058082,120]
[321119380,1711900368357,-500.0,0.00058082,120]
[321119381,1711900368369,-556.88,0.00058082,120]
[321119382,1711900368380,-646.48,0.00058082,120]
[321119383,1711900368391,-500.0,0.00058082,120]
[321119384,1711900368401,-500.0,0.00058082,120]
[321119385,1711900368411,-500.0,0.00058082,120]
[321119386,1711900368421,-510.99,0.00058082,120]
[321119387,1711900368431,-849.94,0.00058082,120]
[321119388,1711900368441,-500.0,0.00058082,120]
[321119389,1711900368451,-500.0,0.00058082,120]
[321119390,1711900368462,-500.0,0.00058082,120]
[321119391,1711900368473,-500.0,0.00058082,120]
[321119392,1711900368483,-799.12,0.00058082,120]
[321119393,1711900368493,-500.0,0.00058082,120]
[321119394,1711900368504,-500.0,0.00058082,120]
[321119395,1711900368514,-500.0,0.00058082,120]
[321119396,1711900368523,-500.0,0.00058082,120]
[321119397,1711900368533,-500.0,0.00058082,120]
[321119398,1711900368543,-500.0,0.00058082,120]
[321119399,1711900368553,-500.0,0.00058082,120]
[321119400,1711900368562,-883.96,0.00058082,120]
[321119401,1711900368572,-168.83,0.00058082,120]
[321119402,1711900368581,-202.32,0.00058082,120]
[321119403,1711900368591,-815.7,0.00058082,120]
[321119404,1711900368600,-500.0,0.00058082,120]
[321119405,1711900368610,-804.07,0.00058082,120]
[321119406,1711900368619,-635.28,0.00058082,120]
[321119407,1711900368628,-959.19,0.00058082,120]
[321119408,1711900368638,-683.74,0.00058082,120]
[321119409,1711900368648,-500.0,0.00058082,120]
[321119410,1711900368657,-1061.5,0.00058082,120]
[321119411,1711900368667,-736.85,0.00058082,120]
[321119412,1711900368676,-500.0,0.00058082,120]
[321119413,1711900368685,-500.0,0.00058082,120]
[321119414,1711900368695,-500.0,0.00058082,120]
[321119415,1711900368705,-500.0,0.00058082,120]
[321119416,1711900368715,-592.16,0.00058082,120]
[321119417,1711900368724,-500.0,0.00058082,120]
[321119418,1711900368733,-500.0,0.00058082,120]
[321119419,1711900368743,-571.87,0.00058082,120]
[321119420,1711900368753,-500.0,0.00058082,16]
[321119421,1711900368762,-781.99,0.00058082,120]
[321119422,1711900368771,-828.46,0.00058082,120]
[321119423,1711900368779,-500.0,0.00058082,120]
[321119424,1711900368789,-500.0,0.00058082,120]
[321119425,1711900368798,-500.0,0.00058082,120]
[321119426,1711900368808,-500.0,0.00058082,120]
[321119427,1711900368818,-500.0,0.00058082,120]
[321119428,1711900368828,-519.19,0.00058082,120]
[321119429,1711900368838,-680.37,0.00058082,120]
[321119430,1711900368848,-500.0,0.00058082,120]
[321119431,1711900368857,-735.71,0.00058082,120]
[321119432,1711900368867,-500.0,0.00058082,120]
[321119433,1711900368875,-500.0,0.00058082,120]
[321119434,1711900368885,-648.33,0.00058082,120]
[321119435,1711900368895,-500.0,0.00058082,120]
[321119436,1711900368904,-500.0,0.00058082,120]
[321119437,1711900368913,-680.7,0.00058082,120]
[321119438,1711900368923,-470.18178647,0.00058082,120]
[321119439,1711900368932,-500.0,0.00058082,120]
[321119440,1711900368941,-1067.63,0.00058082,120]
[321119441,1711900368951,-617.46,0.00058082,120]
[321119442,1711900368960,-500.0,0.00058082,120]
[321119443,1711900368970,-500.0,0.00058082,120]
[321119444,1711900368979,-615.17,0.00058082,120]
[321119445,1711900368988,-753.46,0.00058082,120]
[321119446,1711900368998,-671.0,0.00058082,120]
[321119447,1711900369007,-742.98,0.00058082,120]
[321119448,1711900369016,-579.39,0.00058082,120]
[321119449,1711900369026,-303.46101157,0.00058082,120]
[321119450,1711900369035,-500.0,0.00058082,120]
[321119451,1711900369045,-759.51,0.00058082,120]
[321119452,1711900369054,-500.0,0.00058082,120]
[321119453,1711900369064,-500.0,0.00058082,120]
[321119454,1711900369073,-500.0,0.00058082,7]
[321119455,1711900369082,-500.0,0.00058082,120]
[321119456,1711900369092,-500.0,0.00058082,120]
[321119457,1711900369102,-730.83,0.00058082,30]
[321119458,1711900369111,-562.36,0.00058082,120]
[321119459,1711900369121,-500.0,0.00058082,120]
[321119460,1711900369131,-500.0,0.00058082,120]
[321119461,1711900369140,-500.0,0.00058082,120]
[321119462,1711900369150,-591.57,0.00058082,120]
[321119463,1711900369159,-500.0,0.00058082,120]
[321119464,1711900369168,-754.29,0.00058082,120]
[321119465,1711900369177,-544.56,0.00058082,120]
[321119466,1711900369187,-500.0,0.00058082,120]
[321119467,1711900369196,-563.24,0.00058082,120]
[321119468,1711900369206,-500.0,0.00058082,120]
[321119469,1711900369215,-500.0,0.00058082,120]
[321119470,1711900369224,-500.0,0.00058082,120]
[321119471,1711900369233,-500.0,0.00058082,120]
[321119472,1711900369242,-662.41,0.00058082,120]
[321119473,1711900369251,-995.44,0.00058082,120]
[321119474,1711900369261,-500.0,0.00058082,120]
[321119475,1711900369269,-500.0,0.00058082,120]
[321119476,1711900369279,-500.0,0.00058082,120]
[321119477,1711900369293,-629.64,0.00058082,120]
[321119478,1711900369302,-500.0,0.00058082,120]
[321119479,1711900369312,-531.25,0.00058082,120]
[321119480,1711900369321,-500.0,0.00058082,30]
[321119481,1711900369332,-543.59,0.00058082,120]
[321119482,1711900369341,-500.0,0.00058082,120]
[321119483,1711900369351,-761.88,0.00058082,120]
[321119484,1711900369362,-711.25,0.00058082,120]
[321119485,1711900369371,-646.54,0.00058082,120]
[321119486,1711900369381,-625.33438095,0.00058082,120]
[321119487,1711900369390,-1048.22,0.00058082,120]
[321119488,1711900369400,-500.0,0.00058082,120]
[321119489,1711900369409,-500.0,0.00058082,120]
[321119490,1711900369418,-500.0,0.00058082,120]
[321119491,1711900369428,-844.59,0.00058082,120]
[321119492,1711900369437,-519.79,0.00058082,120]
[321119493,1711900369447,-729.88,0.00058082,120]
[321119494,1711900369456,-539.07,0.00058082,120]
[321119495,1711900369465,-915.41,0.00058082,120]
[321119496,1711900369474,-500.0,0.00058082,120]
[321119497,1711900369484,-771.12,0.00058082,120]
[321119498,1711900369494,-500.0,0.00058082,120]
[321119499,1711900369503,-544.62,0.00058082,120]
[321119500,1711900369513,-618.81,0.00058082,120]
[321119501,1711900369522,-560.35,0.00058082,120]
[321119502,1711900369532,-500.0,0.00058082,120]
[321119503,1711900369541,-500.0,0.00058082,120]
[321119504,1711900369551,-500.0,0.00058082,120]
[321119505,1711900369560,-220.49,0.00058082,120]
[321119506,1711900369569,-500.0,0.00058082,120]
[321119507,1711900369579,-860.0,0.00058082,120]
[321119508,1711900369589,-514.98,0.00058082,120]
[321119509,1711900369599,-500.0,0.00058082,120]
[321119510,1711900369608,-881.22,0.00058082,120]
[321119511,1711900369617,-500.0,0.00058082,120]
[321119512,1711900369627,-500.0,0.00058082,120]
[321119513,1711900369637,-644.32,0.00058082,120]
[321119514,1711900369646,-500.0,0.00058082,120]
[321119515,1711900369656,-500.0,0.00058082,120]
[321119516,1711900369665,-500.0,0.00058082,120]
[321119517,1711900369676,-500.0,0.00058082,120]
[321119518,1711900369686,-500.0,0.00058082,120]
[321119519,1711900369696,-1276.69,0.00058082,120]
[321119520,1711900369705,-277.16,0.00058082,120]
[321119521,1711900369715,-500.0,0.00058082,120]
[321119522,1711900369725,-500.0,0.00058082,120]
[321119523,1711900369734,-347.08192592,0.00058082,120]
[321119524,1711900369743,-495.57000028,0.00058082,120]
[321119525,1711900369754,-500.0,0.00058082,120]
[321119526,1711900369763,-500.0,0.00058082,120]
[321119527,1711900369773,-335.36013321,0.00058082,120]
[321119528,1711900369782,-259.83,0.00058082,120]
[321119529,1711900369791,-554.91,0.00058082,120]
[321119530,1711900369801,-545.06,0.00058082,120]
[321119531,1711900369810,-500.0,0.00058082,120]
[321119532,1711900369819,-500.0,0.00058082,120]
[321119533,1711900369828,-688.34,0.00058082,120]
[321119534,1711900369839,-1281.67,0.00058082,120]
[321119535,1711900369848,-500.0,0.00058082,120]
[321119536,1711900369857,-500.0,0.00058082,120]
[321119537,1711900369867,-1988.35,0.00058082,120]
[321119538,1711900369877,-151.0,0.00058082,120]
[321119539,1711900369887,-151.0,0.00058082,120]
[321119540,1711900369896,-151.0,0.00058082,120]
[321119541,1711900369906,-307.89,0.00058082,120]
[321119542,1711900369915,-151.0,0.00058082,120]
[321119543,1711900369926,-555.54,0.00058082,120]
[321119544,1711900369936,-4923.54,0.00058082,120]
[321119545,1711900369946,-500.0,0.00058082,120]
[321119546,1711900369955,-593.25,0.00058082,120]
[321119547,1711900369966,-500.0,0.00058082,120]
[321119548,1711900369976,-1037.57,0.00058082,120]
[321119549,1711900369985,-155.369584,0.00058082,120]
[321119550,1711900370204,-155.369584,0.00058082,120]
[321119551,1711900370235,-155.369584,0.00058082,120]
[321119552,1711900370245,-500.0,0.00058082,120]
[321119553,1711900370255,-155.369584,0.00058082,120]
[321119554,1711900370265,-1959.37,0.00058082,120]
[321119555,1711900370275,-500.0,0.00058082,120]
[321119556,1711900370287,-151.0,0.00058082,120]
[321119557,1711900370298,-500.0,0.00058082,120]
[321119558,1711900370308,-151.0,0.00058082,120]
[321119559,1711900370318,-151.0,0.00058082,120]
[321119560,1711900370327,-151.0,0.00058082,120]
[321119561,1711900370338,-507.1,0.00058082,120]
[321119562,1711900370348,-155.369584,0.00058082,120]
[321119563,1711900370357,-155.369584,0.00058082,120]
[321119564,1711900370369,-155.369584,0.00058082,120]
[321119565,1711900370379,-155.369579,0.00058082,120]
[321119566,1711900370388,-973.96,0.00058082,120]
[321119567,1711900370397,-17432.97,0.00058082,120]
[321119568,1711900370408,-575.53,0.00058082,120]
[321119569,1711900370417,-836.36,0.00058082,120]
[321119570,1711900370427,-664.02,0.00058082,120]
[321119571,1711900370437,-4982.73,0.00058082,120]
[321119572,1711900370447,-1206.53,0.00058082,120]
[321119573,1711900370457,-2111.34,0.00058082,120]
[321119574,1711900370467,-561.13,0.00058082,120]
[321119575,1711900370477,-535.14,0.00058082,120]
[321119576,1711900370487,-150.78614829,0.00058082,120]
[321119577,1711900370497,-35203.05,0.00058082,120]
[321119578,1711900370507,-500.0,0.00058082,120]
[321119579,1711900370517,-500.0,0.00058082,120]
[321119580,1711900370527,-500.0,0.00058082,120]
[321119581,1711900370537,-152.737908,0.00058082,120]
[321119582,1711900370546,-20306.49,0.00058082,120]
[321119583,1711900370556,-500.0,0.00058082,120]
[321119584,1711900370566,-500.0,0.00058082,120]
[321119585,1711900370576,-2426.71,0.00058082,120]
[321119586,1711900370586,-3158.99,0.00058082,120]
[321119587,1711900370596,-500.0,0.00058082,120]
[321119588,1711900370606,-500.0,0.00058082,120]
[321119589,1711900370616,-6583.66,0.00058082,120]
[321119590,1711900370626,-550.6,0.00058082,120]
[321119591,1711900370635,-500.0,0.00058082,120]
[321119592,1711900370645,-365.33112325,0.00058082,120]
[321119593,1711900370655,-4743.47,0.00058082,120]
[321119594,1711900370665,-649.91,0.00058082,120]
[321119595,1711900370675,-500.0,0.00058082,120]
[321119596,1711900370685,-1008.94,0.00058082,120]
[321119597,1711900370694,-1501.81,0.00058082,120]
[321119598,1711900370704,-500.0,0.00058082,120]
[321119599,1711900370713,-7272.15,0.00058082,120]
[321119600,1711900370723,-500.0,0.00058082,120]
[321119601,1711900370732,-500.0,0.00058082,120]
[321119602,1711900370741,-1951.74,0.00058082,120]
[321119603,1711900370751,-500.0,0.00058082,120]
[321119604,1711900370760,-1708.51,0.00058082,120]
[321119605,1711900370770,-575.55231947,0.00058082,120]
[321119606,1711900370779,-516.3,0.00058082,120]
[321119607,1711900370788,-2213.16,0.00058082,120]
[321119608,1711900370798,-706.06,0.00058082,120]
[321119609,1711900370807,-500.0,0.00058082,120]
[321119610,1711900370816,-500.0,0.00058082,120]
[321119611,1711900370826,-500.0,0.00058082,120]
[321119612,1711900370836,-500.0,0.00058082,120]
[321119613,1711900370846,-4238.83,0.00058082,120]
[321119614,1711900370855,-1070.8,0.00058082,120]
[321119615,1711900370865,-1153.73,0.00058082,120]
[321119616,1711900370875,-506.91,0.00058082,120]
[321119617,1711900370885,-500.0,0.00058082,120]
[321119618,1711900370895,-11263.13,0.00058082,120]
[321119619,1711900370905,-500.0,0.00058082,120]
[321119620,1711900370915,-6135.58,0.00058082,120]
[321119621,1711900370924,-469.21612309,0.00058082,120]
[321119622,1711900370935,-1063.3,0.00058082,120]
[321119623,1711900370945,-500.0,0.00058082,120]
[321119624,1711900370954,-1083.6,0.00058082,120]
[321119625,1711900370965,-1674.93,0.00058082,120]
[321119626,1711900370975,-500.0,0.00058082,120]
[321119627,1711900370985,-547.37,0.00058082,120]
[321119628,1711900370996,-1968.84,0.00058082,120]
[321119629,1711900371006,-3729.06,0.00058082,120]
[321119630,1711900371015,-500.0,0.00058082,120]
[321119631,1711900371025,-4646.47,0.00058082,120]
[321119632,1711900371035,-2179.05,0.00058082,120]
[321119633,1711900371045,-16968.39,0.00058082,120]
[321119634,1711900371055,-29017.57,0.00058082,120]
[321119635,1711900371065,-551.57,0.00058082,120]
[321119636,1711900371075,-584.14,0.00058082,120]
[321119637,1711900371085,-890.16,0.00058082,120]
[321119638,1711900371096,-3354.8,0.00058082,120]
[321119639,1711900371106,-911.19,0.00058082,120]
[321119640,1711900371117,-500.0,0.00058082,120]
[321119641,1711900371127,-770.28,0.00058082,120]
[321119642,1711900371136,-749.8,0.00058082,120]
[321119643,1711900371146,-1117.84,0.00058082,120]
[321119644,1711900371156,-1829.63,0.00058082,120]
[321119645,1711900371166,-500.0,0.00058082,120]
[321119646,1711900371175,-500.0,0.00058082,120]
[321119647,1711900371185,-3744.87,0.00058082,120]
[321119648,1711900371195,-500.0,0.00058082,120]
[321119649,1711900371204,-542.88,0.00058082,120]
[321119650,1711900371214,-1553.34,0.00058082,120]
[321119651,1711900371223,-500.0,0.00058082,120]
[321119652,1711900371232,-1915.68,0.00058082,120]
[321119653,1711900371242,-430.77133354,0.00058082,120]
[321119654,1711900371252,-500.0,0.00058082,120]
[321119655,1711900371262,-500.0,0.00058082,120]
[321119656,1711900371273,-500.0,0.00058082,120]
[321119657,1711900371283,-584.91,0.00058082,120]
[321119658,1711900371296,-882.75,0.00058082,120]
[321119659,1711900371306,-1875.4,0.00058082,120]
[321119660,1711900371317,-500.0,0.00058082,120]
[321119661,1711900371327,-733.42,0.00058082,120]
[321119662,1711900371337,-784.97,0.00058082,120]
[321119663,1711900371348,-2559.61,0.00058082,120]
[321119664,1711900371358,-500.0,0.00058082,120]
[321119665,1711900371370,-4029.59,0.00058082,120]
[321119666,1711900371380,-1741.29,0.00058082,120]
[321119667,1711900371389,-500.0,0.00058082,120]
[321119668,1711900371399,-8811.85,0.00058082,120]
[321119669,1711900371410,-612.97,0.00058082,120]
[321119670,1711900371419,-7506.96,0.00058082,21]
[321119671,1711900371428,-2797.36,0.00058082,120]
[321119672,1711900371438,-1677.22,0.00058082,120]
[321119673,1711900371448,-1296.66,0.00058082,120]
[321119674,1711900371457,-500.0,0.00058082,120]
[321119675,1711900371466,-966.37,0.00058082,120]
[321119676,1711900371477,-500.0,0.00058082,120]
[321119677,1711900371486,-500.0,0.00058082,120]
[321119678,1711900371495,-202.52170575,0.00058082,120]
[321119679,1711900371505,-12461.24,0.00058082,120]
[321119680,1711900371514,-3203.08,0.00058082,120]
[321119681,1711900371524,-1043.52,0.00058082,120]
[321119682,1711900371534,-4560.05,0.00058082,120]
[321119683,1711900371544,-533.76547528,0.00058082,120]
[321119684,1711900371554,-1828.48,0.00058082,120]
[321119685,1711900371564,-428.0073516,0.00058082,120]
[321119686,1711900371573,-868.97,0.00058082,120]
[321119687,1711900371584,-1209.33,0.00058082,120]
[321119688,1711900371595,-500.0,0.00058082,7]
[321119689,1711900371606,-596.22,0.00058082,120]
[321119690,1711900371615,-500.0,0.00058082,120]
[321119691,1711900371625,-609.97,0.00058082,120]
[321119692,1711900371635,-8356.87,0.00058082,120]
[321119693,1711900371646,-500.0,0.00058082,120]
[321119694,1711900371655,-500.0,0.00058082,120]
[321119695,1711900371665,-1782.7,0.00058082,120]
[321119696,1711900371675,-500.0,0.00058082,120]
[321119697,1711900371684,-525.13,0.00058082,120]
[321119698,1711900371694,-1415.86,0.00058082,120]
[321119699,1711900371704,-1616.02,0.00058082,120]
[321119700,1711900371714,-2311.2,0.00058082,120]
[321119701,1711900371724,-12648.79,0.00058082,120]
[321119702,1711900371733,-2232.12,0.00058082,120]
[321119703,1711900371742,-1508.33,0.00058082,120]
[321119704,1711900371752,-500.0,0.00058082,120]
[321119705,1711900371761,-500.0,0.00058082,120]
[321119706,1711900371771,-500.0,0.00058082,120]
[321119707,1711900371780,-682.15,0.00058082,120]
[321119708,1711900371801,-500.0,0.00058082,120]
[321119709,1711900371817,-3149.36,0.00058082,120]
[321119710,1711900371836,-2930.26,0.00058082,120]
[321119711,1711900371855,-220.79456537,0.00058082,120]
[321119712,1711900371872,-1065.68,0.00058082,120]
[321119713,1711900371889,-500.0,0.00058082,120]
[321119714,1711900371906,-696.26,0.00058082,120]
[321119715,1711900371927,-1509.76,0.00058082,120]
[321119716,1711900371943,-515.16,0.00058082,120]
[321119717,1711900371962,-500.0,0.00058082,120]
[321119718,1711900371985,-4982.8,0.00058082,120]
[321119719,1711900372000,-717.55,0.00058082,120]
[321119720,1711900372015,-2406.23,0.00058082,120]